bitfinex-derivatives/quotes_ETHF0:USTF0_20250101
["timestamp","ask_amount","ask_price","bid_price","bid_amount"]
[1735734012431,0.29948,3346.0,3345.9,0.29947]
[1735734012626,0.29949,3345.9,3345.8,0.29948]
[1735734012827,3.02034498,3346.6,3345.8,0.29948]
[1735734012828,0.29943,3346.5,3346.4,0.29943]
[1735734013042,0.72593,3346.5,3346.4,0.29943]
[1735734013941,0.29944,3346.4,3346.3,0.29944]
[1735734014139,0.4265,3346.5,3346.1,1.169]
[1735734014433,0.29945,3346.3,3346.2,0.29945]
[1735734014639,0.29945,3346.2,3346.1,1.46846]
[1735734015234,0.29945,3346.3,3346.2,0.29945]
[1735734015834,0.29944,3346.4,3346.3,0.29944]
[1735734016139,0.29945,3346.3,3346.2,0.29945]
[1735734016736,0.29945,3346.3,3346.1,1.6263]
[1735734016737,0.29945,3346.2,3346.1,1.92576]
[1735734017137,0.29945,3346.2,3346.1,0.4573]
[1735734017334,0.29947,3346.1,3346.0,0.29947]
[1735734017535,0.76257,3346.1,3346.0,0.29947]
[1735734018940,0.4631,3346.1,3346.0,0.29947]
[1735734019134,0.29945,3346.4,3346.3,0.29944]
[1735734020243,0.72593,3346.5,3346.4,0.29944]
[1735734021248,0.4265,3346.5,3346.2,0.8918]
[1735734021547,0.72593,3346.5,3346.4,0.29944]
[1735734021739,3.50722,3346.6,3346.5,0.29943]
[1735734022140,3.02021498,3347.2,3346.5,0.29943]
[1735734022141,0.29939,3347.0,3346.9,0.29939]
[1735734022345,0.73788,3347.1,3347.0,0.29938]
[1735734022546,0.73788,3347.1,3346.9,3.50719]
[1735734023046,0.29938,3347.0,3346.9,3.50719]
[1735734023541,0.4385,3347.1,3346.9,3.2078]
[1735734023748,0.29937,3347.2,3347.0,0.29937]
[1735734023935,0.29937,3347.2,3347.0,0.8472]
[1735734024136,0.29937,3347.2,3347.1,0.29937]
[1735734024648,0.29937,3347.2,3347.0,1.14658]
[1735734024843,3.2078,3347.3,3346.5,4.3768]
[1735734025058,3.6463,3347.4,3346.6,0.4231]
[1735734025241,3.94565,3347.4,3347.1,0.29937]
[1735734025550,3.6463,3347.4,3347.2,0.29936]
[1735734026943,3.50708,3348.2,3347.9,0.2993]
[1735734027153,3.50708,3348.2,3348.0,2.27177498]
[1735734027347,3.50708,3348.2,3348.0,2.70387498]
[1735734027546,3.2078,3348.2,3348.0,2.70387498]
[1735734027741,3.2078,3348.2,3348.0,3.00316498]
[1735734027951,3.50708,3348.2,3348.0,2.70387498]
[1735734028551,3.50708,3348.2,3348.0,0.4321]
[1735734028947,3.2078,3348.2,3348.0,2.70387498]
[1735734029147,1.3323,3348.5,3348.0,2.70387498]
[1735734029445,0.29925,3348.5,3348.3,2.27177498]
[1735734029641,3.2078,3348.6,3348.3,2.27177498]
[1735734029841,3.2078,3348.6,3348.5,0.29925]
[1735734030046,3.2078,3348.6,3348.3,2.27177498]
[1735734030246,0.29925,3348.5,3348.3,2.27177498]
[1735734030447,3.2078,3348.6,3348.1,3.2078]
[1735734030753,0.29928,3348.1,3347.7,3.45877498]
[1735734030944,0.7612,3348.0,3347.7,2.57108498]
[1735734031345,0.4619,3348.0,3347.7,2.27177498]
[1735734031546,0.4619,3348.0,3347.8,0.29931]
[1735734031748,0.4619,3348.0,3347.7,2.27177498]
[1735734031949,0.29931,3347.8,3347.7,2.27177498]
[1735734032149,0.29934,3347.6,3347.4,3.45877498]
[1735734032350,0.29933,3347.6,3347.4,3.45877498]
[1735734032552,0.29933,3347.6,3347.4,3.75812498]
[1735734032960,0.8857,3347.7,3347.4,2.27177498]
[1735734032961,0.29934,3347.5,3347.4,2.27177498]
[1735734033149,0.29934,3347.5,3347.3,3.96155]
[1735734033355,0.8857,3347.7,3347.3,3.6622]
[1735734033652,0.8857,3347.7,3347.1,2.27177498]
[1735734033653,0.29936,3347.2,3346.8,5.89937498]
[1735734033849,3.2078,3347.2,3346.8,3.45877498]
[1735734034149,1.3249,3347.1,3346.8,2.27177498]
[1735734034652,1.3249,3347.1,3346.7,40.8]
[1735734034843,0.2994,3346.8,3346.7,40.8]
[1735734035454,0.29943,3346.5,3346.4,1.187]
[1735734035650,3.50723,3346.5,3346.4,1.187]
[1735734038156,3.2078,3346.5,3346.0,40.8]
[1735734038350,0.29945,3346.3,3346.1,0.29946]
[1735734039151,0.8776,3346.4,3346.2,2.27177498]
[1735734039358,0.8776,3346.4,3346.3,0.29945]
[1735734039757,1.17704,3346.4,3346.3,0.29945]
[1735734040261,1.17704,3346.4,3346.2,2.57122498]
[1735734043464,0.8776,3346.4,3346.2,2.27177498]
[1735734043665,0.29945,3346.3,3346.2,2.27177498]
[1735734043976,0.8776,3346.4,3346.2,2.27177498]
[1735734044159,0.29945,3346.3,3346.2,2.27177498]
[1735734044462,0.29945,3346.3,3346.1,0.29946]
[1735734045158,0.4325,3346.4,3345.9,46.72167498]
[1735734045360,0.73194,3346.4,3346.2,0.29945]
[1735734045966,3.2078,3346.5,3346.2,2.27177498]
[1735734046167,3.50724,3346.5,3346.3,0.29944]
[1735734046359,3.2078,3346.5,3346.4,0.29944]
[1735734046560,3.50723,3346.5,3346.4,0.29944]
[1735734047667,3.50723,3346.5,3346.3,0.29944]
[1735734047967,3.2078,3346.5,3346.4,0.29944]
[1735734048963,3.2078,3346.5,3346.4,0.73754]
[1735734049156,0.29939,3347.0,3346.8,0.29939]
[1735734049358,3.2078,3347.8,3346.9,5.93507498]
[1735734049559,3.2078,3347.8,3347.2,2.27177498]
[1735734049765,3.2078,3347.8,3347.2,3.45877498]
[1735734050068,0.29936,3347.3,3347.2,3.75813498]
[1735734050465,0.29936,3347.3,3347.2,44.25877498]
[1735734052266,0.29936,3347.3,3347.2,44.55813498]
[1735734053964,2.34019,3347.8,3347.2,1.187]
[1735734054165,0.29936,3347.3,3347.2,1.187]
[1735734054370,0.29936,3347.3,3347.2,1.48636]
[1735734054569,0.29936,3347.3,3347.2,42.28636]
[1735734054774,0.74831,3347.7,3346.9,3.6633]
[1735734054970,0.29938,3347.0,3346.9,0.4555]
[1735734055471,0.8995,3347.2,3346.7,0.4413]
[1735734055768,0.2994,3346.8,3346.7,0.4413]
[1735734055968,0.2994,3346.8,3346.6,1.92491]
[1735734055969,0.29941,3346.7,3346.6,42.4255]
[1735734056175,0.8995,3347.2,3346.6,42.4255]
[1735734056373,0.29941,3346.8,3346.7,0.29941]
[1735734057877,0.2994,3346.9,3346.8,0.2994]
[1735734059583,0.458,3347.2,3346.8,5.47957498]
[1735734059782,0.29938,3347.1,3347.0,0.29938]
[1735734060986,0.29938,3347.0,3346.9,0.75349]
[1735734061282,0.29938,3347.1,3347.0,0.29938]
[1735734065088,0.75737,3347.2,3347.1,0.29937]
[1735734067890,0.29935,3347.4,3347.3,0.29935]
[1735734068288,0.8931,3347.6,3347.0,0.4327]
[1735734068490,0.29937,3347.3,3347.2,0.29936]
[1735734068691,0.29939,3346.9,3346.8,3.50719]
[1735734069095,0.4499,3347.2,3346.8,3.2078]
[1735734069292,0.29939,3347.0,3346.9,0.29938]
[1735734070198,0.4285,3347.1,3347.0,0.29938]
[1735734071297,0.72787,3347.1,3347.0,0.29938]
[1735734071497,0.4646,3347.6,3347.3,0.29935]
[1735734071697,0.29935,3347.4,3347.3,0.29935]
[1735734078904,0.4646,3347.6,3347.2,0.4288]
[1735734079101,0.76393,3347.6,3347.5,0.29934]
[1735734079494,0.29933,3347.6,3347.5,0.29933]
[1735734079702,0.29934,3347.6,3347.3,0.29936]
[1735734080010,0.29934,3347.6,3347.5,0.29934]
[1735734080298,0.72653,3347.7,3347.6,0.29933]
[1735734080893,0.4272,3347.7,3347.2,0.4288]
[1735734081301,0.72652,3347.7,3347.6,0.29933]
[1735734083018,0.4272,3347.7,3347.4,2.71707498]
[1735734083206,0.4272,3347.7,3347.3,1.181]
[1735734083390,0.29935,3347.4,3347.3,0.29935]
[1735734084995,0.4272,3347.7,3347.2,0.4288]
[1735734085197,0.29936,3347.3,3347.2,0.4288]
[1735734085396,0.29936,3347.3,3347.2,0.72816]
[1735734085802,3.2078,3347.5,3347.1,3.2078]
[1735734085996,0.74536,3347.2,3347.1,3.2078]
[1735734087004,0.29941,3346.7,3346.6,42.4069]
[1735734088611,0.29941,3346.7,3346.6,41.2259]
[1735734088900,0.29941,3346.7,3346.5,2.0]
[1735734088901,0.29942,3346.6,3346.5,2.0]
[1735734089101,0.76322,3346.6,3346.5,2.0]
[1735734089308,0.76322,3346.6,3346.5,2.29943]
[1735734090304,3.6301,3347.1,3346.5,4.27177498]
[1735734090607,0.29941,3346.8,3346.7,0.2994]
[1735734090808,0.29941,3346.8,3346.7,0.7351]
[1735734091404,0.4223,3347.1,3346.7,0.4357]
[1735734091807,0.2994,3346.9,3346.8,0.29939]
[1735734092122,0.29939,3347.0,3346.9,0.29939]
[1735734092314,0.4223,3347.1,3346.7,0.8924]
[1735734092509,0.29939,3347.0,3346.9,0.29939]
[1735734094610,0.4223,3347.1,3347.0,0.29938]
[1735734094805,0.4223,3347.1,3347.0,3.50718]
[1735734095400,0.72167,3347.1,3347.0,3.50718]
[1735734096311,0.4223,3347.1,3347.0,3.50718]
[1735734096910,0.29937,3347.2,3347.1,0.29937]
[1735734097710,0.29937,3347.2,3347.1,0.73177]
[1735734101109,0.29936,3347.3,3347.2,0.29935]
[1735734101309,0.29936,3347.3,3347.2,0.72625]
[1735734102711,0.29936,3347.3,3347.2,0.29935]
[1735734105417,0.29936,3347.2,3347.1,0.73176]
[1735734107911,0.29936,3347.4,3347.3,0.29935]
[1735734108817,0.8851,3347.6,3347.2,0.4524]
[1735734109018,0.29935,3347.5,3347.4,0.29934]
[1735734109616,0.29934,3347.6,3347.5,0.29933]
[1735734109819,0.4351,3347.7,3347.3,0.45]
[1735734110018,0.73443,3347.7,3347.6,0.29933]
[1735734110914,0.29933,3347.6,3347.5,0.29933]
[1735734113919,0.29932,3347.7,3347.6,0.29933]
[1735734114111,0.29931,3347.8,3347.7,0.29931]
[1735734114319,0.29932,3347.8,3347.7,0.29931]
[1735734115116,3.6553,3348.2,3347.4,44.0078]
[1735734115322,0.29931,3347.9,3347.8,0.2993]
[1735734116123,0.29928,3348.1,3348.0,0.29929]
[1735734117925,3.6553,3348.2,3347.8,0.4313]
[1735734117926,3.2078,3348.6,3347.8,1.17957]
[1735734118228,0.29926,3348.4,3348.3,0.29926]
[1735734119227,0.73485,3348.5,3348.4,0.29926]
[1735734119425,0.4356,3348.5,3348.4,0.29926]
[1735734120525,0.73485,3348.5,3348.4,0.29926]
[1735734121838,0.29926,3348.4,3348.3,3.00233498]
[1735734123243,0.4356,3348.5,3348.3,2.70307498]
[1735734123432,0.73485,3348.5,3348.4,0.29926]
[1735734123840,0.29925,3348.5,3348.4,0.29926]
[1735734124036,0.29926,3348.5,3348.4,0.29925]
[1735734125049,3.2078,3348.6,3348.3,2.70307498]
[1735734125265,3.2078,3348.6,3348.5,0.29925]
[1735734125442,0.4379,3349.0,3348.3,2.70307498]
[1735734125443,0.29921,3348.9,3348.8,0.29922]
[1735734125948,0.4379,3349.0,3348.6,2.27177498]
[1735734126149,0.29922,3348.8,3348.7,3.96622]
[1735734126348,0.4379,3349.0,3348.9,0.29921]
[1735734126544,0.4379,3349.0,3348.8,0.72852]
[1735734126743,0.29921,3348.9,3348.8,0.72852]
[1735734126939,0.29921,3348.9,3348.8,41.52852]
[1735734127340,0.73711,3349.0,3348.9,0.29921]
[1735734127545,0.4379,3349.0,3348.9,0.29921]
[1735734128147,0.2992,3349.1,3349.0,0.2992]
[1735734128742,0.4394,3349.2,3349.0,0.2992]
[1735734128944,0.4394,3349.2,3349.1,0.2992]
[1735734129443,0.4394,3349.2,3348.9,3.45677498]
[1735734129444,0.4487,3349.3,3349.2,0.29919]
[1735734129852,0.74788,3349.3,3349.2,0.29919]
[1735734130456,0.4487,3349.3,3349.2,0.29919]
[1735734130957,0.29919,3349.2,3349.1,0.29919]
[1735734131354,0.74789,3349.3,3349.1,0.29919]
[1735734131653,0.74788,3349.3,3349.1,0.29919]
[1735734132250,0.4487,3349.3,3349.2,0.73079]
[1735734132450,0.74788,3349.3,3349.2,0.73079]
[1735734132852,0.4487,3349.3,3349.2,0.73079]
[1735734133156,0.29917,3349.4,3349.3,0.29918]
[1735734133359,0.73716,3349.5,3349.3,0.29917]
[1735734133557,0.29917,3349.4,3349.3,0.76407]
[1735734134049,0.29917,3349.4,3349.2,0.4316]
[1735734134258,0.29917,3349.4,3349.2,0.73078]
[1735734134460,0.29918,3349.3,3349.2,0.4316]
[1735734134651,0.29919,3349.2,3349.1,0.29919]
[1735734135048,0.29918,3349.3,3349.2,0.29918]
[1735734135258,0.29918,3349.4,3349.0,0.9035]
[1735734135455,0.29918,3349.4,3349.3,0.29918]
[1735734136560,0.29919,3349.2,3349.1,0.29919]
[1735734136951,0.29918,3349.4,3349.0,1.6226]
[1735734137160,0.29919,3349.2,3349.1,0.2992]
[1735734137460,0.438,3349.5,3349.2,0.29918]
[1735734137461,0.29918,3349.3,3349.2,0.29918]
[1735734137662,0.438,3349.5,3349.0,1.6226]
[1735734137955,0.29919,3349.2,3349.1,0.29919]
[1735734138159,0.2992,3349.1,3349.0,1.9218]
[1735734138464,0.2992,3349.1,3349.0,0.4386]
[1735734138759,0.29922,3348.8,3348.6,3.45577498]
[1735734138949,0.29922,3348.8,3348.7,0.29923]
[1735734139154,0.29922,3348.9,3348.8,0.29922]
[1735734139458,0.75362,3348.9,3348.8,0.29922]
[1735734140258,0.74793,3349.4,3348.7,44.0078]
[1735734140463,0.29921,3349.0,3348.9,0.29921]
[1735734140658,0.29919,3349.2,3349.1,0.29919]
[1735734141454,0.9197,3349.3,3348.7,44.0078]
[1735734141654,0.29922,3348.8,3348.7,44.30703]
[1735734141863,0.29922,3348.8,3348.7,44.0078]
[1735734142053,0.4372,3349.2,3348.7,44.30703]
[1735734142260,0.29922,3348.9,3348.8,0.29921]
[1735734142455,0.29921,3349.0,3348.9,0.2992]
[1735734143062,0.29921,3349.1,3349.0,0.2992]
[1735734144153,0.29919,3349.2,3349.1,0.29919]
[1735734144358,0.4544,3349.3,3349.2,0.29919]
[1735734145066,0.29917,3349.4,3349.3,0.29916]
[1735734146663,0.29916,3349.5,3349.4,0.29916]
[1735734147360,3.2078,3349.6,3349.2,2.27177498]
[1735734147566,0.4591,3349.8,3349.5,3.2078]
[1735734147763,0.4591,3349.8,3349.7,0.29914]
[1735734149465,3.2078,3350.3,3349.6,0.8795]
[1735734149662,1.14531,3350.2,3350.1,0.2991]
[1735734149963,0.8462,3350.2,3349.8,2.27177498]
[1735734150358,1.1453,3350.2,3350.1,0.29911]
[1735734151165,1.1453,3350.2,3349.9,40.8]
[1735734151166,0.8462,3350.2,3349.9,40.8]
[1735734151562,1.14531,3350.2,3350.1,0.29911]
[1735734151766,0.29911,3350.1,3350.0,0.29911]
[1735734152167,0.8462,3350.2,3349.9,40.8]
[1735734152366,0.8462,3350.2,3350.1,0.29911]
[1735734152961,0.8462,3350.2,3350.1,1.16811]
[1735734153875,1.1453,3350.2,3350.1,0.869]
[1735734154075,0.8462,3350.2,3350.0,1.48711]
[1735734154268,0.29911,3350.1,3350.0,1.188]
[1735734154967,0.29911,3350.1,3350.0,1.48711]
[1735734155168,0.29911,3350.1,3350.0,1.188]
[1735734157069,0.29911,3350.0,3349.9,0.4481]
[1735734157275,0.29913,3349.9,3349.7,1.188]
[1735734157471,0.29913,3349.9,3349.8,0.29913]
[1735734157874,0.29913,3349.8,3349.7,1.48714]
[1735734158071,0.29913,3349.8,3349.7,0.29914]
[1735734158277,0.29914,3349.8,3349.7,0.29914]
[1735734158576,0.29912,3350.0,3349.9,0.29912]
[1735734159172,0.29912,3350.0,3349.9,0.73312]
[1735734161376,0.29911,3350.1,3350.0,0.29911]
[1735734161979,0.8462,3350.2,3349.9,0.434]
[1735734162276,0.29911,3350.0,3349.9,0.73312]
[1735734162666,0.29911,3350.0,3349.9,41.53312]
[1735734164081,0.8462,3350.2,3349.9,41.53312]
[1735734164082,0.8462,3350.2,3349.9,41.234]
[1735734164379,0.29911,3350.1,3350.0,0.29911]
[1735734164877,0.8462,3350.2,3349.9,44.4418]
[1735734165174,0.29911,3350.1,3350.0,0.29911]
[1735734165781,0.29911,3350.0,3349.9,44.30692]
[1735734166676,0.29911,3350.1,3350.0,0.29911]
[1735734167575,0.29911,3350.0,3349.9,44.30692]
[1735734172186,0.29911,3350.0,3349.9,44.0078]
[1735734172989,0.29911,3350.0,3349.9,44.30692]
[1735734173584,0.00332308,3350.1,3349.9,44.0078]
[1735734173790,0.30243308,3350.1,3350.0,0.29911]
[1735734173987,0.30243308,3350.1,3349.9,44.0078]
[1735734173988,0.00332308,3350.1,3349.9,44.0078]
[1735734174182,0.00332308,3350.1,3350.0,1.0720869]
[1735734174490,0.30243308,3350.1,3350.0,1.3711969]
[1735734175283,0.00332308,3350.1,3350.0,1.3711969]
[1735734176389,0.00332308,3350.1,3350.0,2.4432838]
[1735734176887,3.656,3350.7,3350.6,0.29906]
[1735734176888,0.29905,3350.7,3350.6,0.29906]
[1735734177187,0.441,3350.9,3350.6,1.0720869]
[1735734177383,0.29905,3350.7,3350.6,1.0720869]
[1735734178083,0.29905,3350.7,3350.6,1.3711469]
[1735734178284,0.29905,3350.8,3350.6,0.29905]
[1735734178489,0.29905,3350.8,3350.7,0.29905]
[1735734178684,0.29905,3350.8,3350.4,3.45186114]
[1735734178885,0.441,3350.9,3350.4,3.45186114]
[1735734178886,0.74004,3350.9,3350.4,3.45186114]
[1735734179086,0.74004,3350.9,3350.7,0.29905]
[1735734179592,0.29903,3351.0,3350.8,0.29904]
[1735734179788,0.29903,3350.9,3350.8,0.29904]
[1735734179983,0.29903,3350.9,3350.8,1.21094]
[1735734180179,3.2078,3351.7,3350.8,4.1197]
[1735734180379,3.2078,3351.7,3351.1,0.29901]
[1735734180691,0.421,3351.8,3351.1,41.988]
[1735734180896,0.29901,3351.2,3351.1,41.988]
[1735734181581,0.451,3351.6,3351.1,41.988]
[1735734181893,0.29898,3351.2,3351.1,41.988]
[1735734182094,0.74741,3351.4,3350.9,1.189]
[1735734182390,0.7475,3351.0,3350.2,4.68134433]
[1735734182691,0.29906,3350.3,3350.2,4.68134433]
[1735734182885,0.29908,3350.1,3350.0,4.39358]
[1735734183395,0.4564,3350.2,3350.0,4.0945]
[1735734183691,0.29908,3350.1,3350.0,4.0945]
[1735734183885,0.29908,3350.1,3350.0,3.6522]
[1735734184692,0.4564,3350.2,3350.1,0.29908]
[1735734184893,0.4564,3350.2,3350.0,5.91606114]
[1735734185093,0.29908,3350.1,3350.0,5.91606114]
[1735734185287,0.29908,3350.1,3350.0,3.6522]
[1735734185488,0.29908,3350.0,3349.9,1.189]
[1735734187082,3.2078,3350.4,3349.9,1.189]
[1735734187284,0.29908,3350.0,3349.9,1.189]
[1735734188296,1.3374,3350.3,3349.7,2.69326114]
[1735734188492,0.74769,3350.2,3349.6,3.2078]
[1735734188798,0.29911,3349.7,3349.6,3.2078]
[1735734189994,0.74769,3350.2,3349.6,3.2078]
[1735734190194,1.3374,3350.3,3349.7,2.26386114]
[1735734190593,0.29908,3350.1,3349.8,0.2991]
[1735734190797,0.29908,3350.1,3350.0,0.29908]
[1735734190991,0.29908,3350.1,3350.0,41.09908]
[1735734191188,0.29908,3350.1,3350.0,40.8]
[1735734193397,0.4527,3350.5,3350.0,40.8]
[1735734193398,0.4527,3350.5,3350.0,46.27166114]
[1735734193598,3.6639,3350.9,3350.3,2.26386114]
[1735734193998,0.29903,3350.7,3350.6,0.29903]
[1735734194497,0.29902,3350.7,3350.6,0.29903]
[1735734194898,0.29903,3350.6,3350.5,3.50684]
[1735734195102,0.29902,3350.8,3350.6,0.29903]
[1735734195290,0.29902,3350.8,3350.7,0.74322]
[1735734195510,0.29902,3350.8,3350.7,0.4442]
[1735734196296,0.29902,3350.8,3350.7,0.74322]
[1735734196491,0.29902,3350.8,3350.7,0.4442]
[1735734197398,0.29902,3350.8,3350.7,0.74322]
[1735734197605,0.29901,3350.8,3350.7,0.74322]
[1735734197803,0.29901,3350.8,3350.7,0.4442]
[1735734198302,0.29901,3350.8,3350.7,0.74322]
[1735734198602,0.29901,3350.8,3350.7,0.4442]
[1735734198797,0.29901,3350.8,3350.7,0.74322]
[1735734198997,0.29901,3350.8,3350.7,0.4442]
[1735734199500,0.74756,3350.7,3350.2,1.189]
[1735734199695,0.29906,3350.3,3350.2,1.189]
[1735734199997,0.29906,3350.3,3350.1,4.0758]
[1735734199998,0.29907,3350.2,3350.1,4.0758]
[1735734200202,0.29907,3350.2,3350.1,4.37488]
[1735734200399,0.29905,3350.4,3350.3,0.29905]
[1735734200897,0.29905,3350.4,3350.1,4.0758]
[1735734201092,0.29905,3350.4,3350.3,0.29906]
[1735734201296,0.4563,3350.6,3350.1,4.0758]
[1735734201500,0.4563,3350.6,3350.2,0.29906]
[1735734201701,0.4563,3350.6,3350.1,4.0758]
[1735734201900,0.29907,3350.2,3350.1,4.37487]
[1735734202094,4.40906,3351.2,3350.1,4.0758]
[1735734202298,0.29904,3350.6,3350.5,0.29904]
[1735734203103,0.29901,3350.9,3350.8,0.29901]
[1735734203806,0.29901,3350.9,3350.7,0.8615]
[1735734203999,0.29901,3350.9,3350.8,0.29901]
[1735734204808,0.29901,3350.9,3350.7,1.16052]
[1735734204993,0.29901,3350.9,3350.7,0.8615]
[1735734205200,0.29901,3350.8,3350.7,1.16052]
[1735734205505,0.4248,3351.1,3350.8,0.29901]
[1735734205698,0.7455,3351.0,3350.8,0.29901]
[1735734206099,0.4465,3351.0,3350.8,0.29901]
[1735734206306,0.7455,3351.0,3350.8,0.29901]
[1735734206507,0.29899,3351.1,3350.8,0.29901]
[1735734206700,0.4615,3351.1,3350.7,2.34952]
[1735734207008,0.29901,3350.9,3350.7,2.0505]
[1735734207204,0.29901,3350.9,3350.8,0.29901]
[1735734207600,0.29901,3350.9,3350.7,2.34952]
[1735734208201,0.29901,3350.8,3350.7,2.34952]
[1735734208907,0.299,3351.0,3350.8,0.29901]
[1735734209407,0.299,3350.9,3350.8,0.29901]
[1735734213316,0.299,3351.0,3350.9,0.299]
[1735734213511,0.4615,3351.1,3350.8,0.29901]
[1735734213512,0.29901,3350.9,3350.8,0.29901]
[1735734214017,0.4615,3351.1,3351.0,0.299]
[1735734214318,0.29898,3351.2,3351.1,0.29899]
[1735734214716,0.857,3351.4,3351.0,2.26386114]
[1735734214915,0.29899,3351.1,3351.0,2.56285114]
[1735734215314,0.857,3351.4,3351.0,43.06386114]
[1735734215515,0.29898,3351.2,3351.1,0.29898]
[1735734216012,0.29895,3351.5,3351.4,0.29895]
[1735734216516,0.29895,3351.5,3351.4,1.49895]
[1735734216728,0.29895,3351.5,3351.4,1.92045]
[1735734217215,0.29895,3351.5,3351.4,1.6215]
[1735734217818,0.29895,3351.5,3351.4,1.2]
[1735734219518,3.2078,3351.7,3350.9,0.4579]
[1735734219726,0.299,3351.0,3350.9,0.4579]
[1735734220516,0.8889,3351.4,3350.9,0.4579]
[1735734220517,0.4498,3351.4,3350.9,0.4579]
[1735734220718,0.299,3351.1,3351.0,0.29899]
[1735734220920,0.4498,3351.4,3350.9,0.7569]
[1735734220921,0.299,3351.0,3350.9,0.7569]
[1735734221113,0.29899,3351.1,3351.0,0.29899]
[1735734221716,0.29897,3351.3,3351.2,0.29897]
[1735734222111,3.2078,3351.7,3351.0,2.26386114]
[1735734222322,0.29896,3351.4,3351.3,0.29896]
[1735734222520,0.29898,3351.3,3351.1,0.29899]
[1735734222719,0.29899,3351.1,3351.0,2.56285114]
[1735734222914,0.29898,3351.2,3351.1,0.29898]
[1735734223113,0.29899,3351.1,3351.0,2.56285114]
[1735734223715,0.74738,3351.5,3350.9,0.4579]
[1735734223928,0.299,3351.0,3350.9,0.7569]
[1735734224125,0.299,3351.0,3350.9,1.9569]
[1735734224727,0.299,3351.0,3350.9,1.6579]
[1735734226616,0.29899,3351.1,3351.0,0.29899]
[1735734226823,0.4525,3351.3,3350.9,1.6579]
[1735734227024,0.299,3351.1,3351.0,0.29899]
[1735734227527,0.299,3351.0,3350.9,1.9569]
[1735734228227,0.299,3351.0,3350.9,1.6579]
[1735734228419,0.299,3351.0,3350.9,1.9569]
[1735734228617,0.299,3351.0,3350.9,1.6579]
[1735734229025,0.299,3351.0,3350.9,1.9569]
[1735734230218,0.4525,3351.3,3350.9,1.6579]
[1735734230419,0.29899,3351.1,3351.0,0.299]
[1735734230822,0.29899,3351.1,3351.0,41.099]
[1735734231026,0.4525,3351.3,3350.9,0.4579]
[1735734231222,0.299,3351.0,3350.9,0.4579]
[1735734231528,0.299,3351.0,3350.9,41.5569]
[1735734231725,0.29898,3351.3,3351.2,0.29897]
[1735734232021,0.29898,3351.3,3351.2,3.50677]
[1735734232829,0.29897,3351.4,3351.3,0.29896]
[1735734233229,0.29897,3351.4,3351.3,0.75816]
[1735734234927,0.29897,3351.4,3351.3,3.96596]
[1735734235322,0.29893,3351.8,3351.4,0.29896]
[1735734235522,0.29894,3351.7,3351.6,0.29894]
[1735734235729,1.16868,3352.0,3351.5,1.6346]
[1735734235930,0.29894,3351.6,3351.5,1.93355]
[1735734236234,0.29894,3351.6,3351.5,1.6346]
[1735734236525,0.29894,3351.6,3351.5,1.2]
[1735734238031,0.4214,3352.0,3351.3,3.667]
[1735734238231,0.4419,3351.5,3351.3,3.667]
[1735734238429,0.74085,3351.5,3351.4,0.29896]
[1735734238628,0.4419,3351.5,3351.4,0.29896]
[1735734239230,0.74085,3351.5,3351.4,0.29896]
[1735734239631,3.6293,3352.1,3351.6,0.29893]
[1735734239832,0.29892,3351.8,3351.6,0.29893]
[1735734240730,0.29893,3351.7,3351.5,0.29895]
[1735734240922,0.29893,3351.8,3351.6,0.29894]
[1735734241633,0.29892,3351.9,3351.7,0.29893]
[1735734241832,0.29892,3351.9,3351.8,0.8476]
[1735734243536,0.74081,3352.0,3351.8,0.8476]
[1735734243835,0.29892,3351.9,3351.8,0.8476]
[1735734244235,0.4419,3352.0,3351.8,0.8476]
[1735734244734,0.29893,3351.7,3351.5,0.29895]
[1735734245538,0.4419,3352.0,3351.4,0.8886]
[1735734245834,0.29893,3351.8,3351.6,0.29894]
[1735734246331,3.2078,3352.1,3351.4,0.8886]
[1735734246539,0.29892,3351.9,3351.7,0.29893]
[1735734247538,0.4254,3351.8,3351.7,0.29893]
[1735734248436,1.47481409,3352.2,3351.8,0.29892]
[1735734248633,1.47481409,3352.2,3352.1,0.2989]
[1735734248634,1.17592409,3352.2,3352.1,0.2989]
[1735734248939,0.47622409,3352.2,3352.1,7.2784308]
[1735734249132,0.47622409,3352.2,3352.1,12.2784308]
[1735734249443,0.47622409,3352.2,3352.1,48.07813432]
[1735734249639,0.47622409,3352.2,3352.1,47.76956114]
[1735734249935,0.47622409,3352.2,3351.9,0.4628]
[1735734249936,0.47622409,3352.2,3351.9,1.199]
[1735734250131,0.8867,3352.1,3351.7,7.88914433]
[1735734250335,0.29892,3351.8,3351.7,7.88914433]
[1735734250629,0.29892,3351.8,3351.7,4.68134433]
[1735734251336,0.29896,3351.4,3351.2,1.199]
[1735734251541,0.8707,3351.3,3351.2,3.46286114]
[1735734251741,0.8707,3351.3,3351.2,6.67066114]
[1735734251939,3.6332,3352.1,3351.2,6.96964114]
[1735734251940,0.29895,3351.6,3351.2,6.96964114]
[1735734252153,0.8707,3352.0,3351.3,0.29896]
[1735734252337,0.29895,3351.6,3351.3,0.75856]
[1735734252644,0.29893,3351.8,3351.5,2.26386114]
[1735734252838,0.29894,3351.7,3351.5,2.26386114]
[1735734253033,0.29894,3351.6,3351.5,2.26386114]
[1735734253644,0.8707,3352.0,3351.5,2.26386114]
[1735734254242,0.29892,3351.8,3351.7,3.2078]
[1735734254936,0.29892,3351.9,3351.7,3.2078]
[1735734255143,0.8707,3352.0,3351.7,3.2078]